bitfinex/quotes_BTCUSD_20250802
["timestamp","ask_amount","ask_price","bid_price","bid_amount"]
[1754135920686,0.35442369,114030.0,114020.0,0.66166962]
[1754135920899,0.35442369,114030.0,114020.0,0.79510962]
[1754135921146,0.36814961,114030.0,114020.0,0.79510962]
[1754135922059,0.36814961,114030.0,114020.0,0.51789]
[1754135924121,0.36814876,114030.0,114020.0,0.51789]
[1754135926304,0.37027876,114030.0,114020.0,0.51789]
[1754135927272,0.36814876,114030.0,114020.0,0.79510962]
[1754135927940,0.36814876,114030.0,114020.0,1.07232924]
[1754135928940,0.02197097,114030.0,114020.0,1.07232924]
[1754135929148,0.00823819,114030.0,114020.0,1.07232924]
[1754135929665,0.03591858,114050.0,114020.0,1.08074886]
[1754135929904,0.02347957,114050.0,114040.0,0.55443924]
[1754135930135,0.01730434,114050.0,114040.0,0.55658924]
[1754135930373,0.01730434,114050.0,114040.0,0.67243924]
[1754135930658,0.01730434,114050.0,114040.0,0.80587924]
[1754135930890,0.01729689,114050.0,114040.0,0.80587924]
[1754135931121,0.0090707,114050.0,114040.0,0.80587924]
[1754135932030,0.02280028,114050.0,114040.0,0.80587924]
[1754135932266,0.02280028,114050.0,114040.0,0.80687924]
[1754135932494,0.02280028,114050.0,114040.0,0.52965962]
[1754135932956,0.02280028,114050.0,114040.0,0.119]
[1754135933180,0.02280028,114050.0,114040.0,0.52961962]
[1754135933403,0.02280028,114050.0,114040.0,0.2544]
[1754135933855,0.02280028,114050.0,114040.0,0.53161962]
[1754135934588,0.02280028,114050.0,114040.0,0.25444]
[1754135934811,0.02280028,114050.0,114040.0,0.53165962]
[1754135935256,0.02280028,114050.0,114040.0,0.121]
[1754135935481,0.02280028,114050.0,114040.0,0.25452]
[1754135935482,0.02495028,114050.0,114040.0,0.25452]
[1754135935709,0.02495028,114050.0,114040.0,0.121]
[1754135935941,0.02495028,114050.0,114040.0,0.25456]
[1754135936159,0.03316389,114050.0,114040.0,0.25456]
[1754135936380,0.02495028,114050.0,114040.0,0.25456]
[1754135937269,0.02495028,114050.0,114040.0,0.53177962]
[1754135938132,0.02495028,114050.0,114040.0,0.25456]
[1754135939063,0.02495028,114050.0,114040.0,0.53177962]
[1754135939977,0.02495028,114050.0,114040.0,0.25153]
[1754135940647,0.02495028,114050.0,114040.0,0.25467]
[1754135941103,0.02495028,114050.0,114040.0,0.52347]
[1754135941326,0.02495028,114050.0,114040.0,0.66716962]
[1754135941549,0.02495028,114050.0,114040.0,0.52351]
[1754135947141,0.02495028,114050.0,114040.0,0.51822]
[1754135947570,0.02495028,114050.0,114040.0,0.52338]
[1754135949257,0.03101583,114050.0,114040.0,0.80059962]
[1754135949957,0.03101583,114050.0,114040.0,0.52338]
[1754135950177,0.03101583,114050.0,114040.0,0.80059962]
[1754135950403,0.01728625,114050.0,114040.0,0.80059962]
[1754135950636,0.01728702,114050.0,114040.0,0.80059962]
[1754135953079,0.03101714,114050.0,114040.0,0.80059962]
[1754135954456,0.01728702,114050.0,114040.0,0.80059962]
[1754135954897,0.01728702,114050.0,114040.0,0.52338]
[1754135957179,0.03101712,114050.0,114040.0,0.52338]
[1754135959421,0.03101712,114050.0,114040.0,0.52262]
[1754135966498,0.03101712,114050.0,114040.0,0.38906]
[1754135966726,0.03101712,114050.0,114040.0,0.52246]
[1754135968474,0.03101712,114050.0,114040.0,0.38906]
[1754135968723,0.03101712,114050.0,114040.0,0.52246]
[1754135969456,0.03719735,114050.0,114040.0,0.52246]
[1754135969902,0.03719735,114050.0,114040.0,0.38906]
[1754135970128,0.03719735,114050.0,114040.0,0.52246]
[1754135970376,0.03722133,114050.0,114040.0,0.38906]
[1754135970603,0.03722133,114050.0,114040.0,0.52246]
[1754135971046,0.0310411,114050.0,114040.0,0.52246]
[1754135971274,0.03722133,114050.0,114040.0,0.52246]
[1754135971911,0.03722133,114050.0,114040.0,0.38906]
[1754135972114,0.03722133,114050.0,114040.0,0.52246]
[1754135973247,0.03722142,114050.0,114040.0,0.52246]
[1754135975940,0.0310411,114050.0,114040.0,0.52246]
[1754135977296,0.03722141,114050.0,114040.0,0.52246]
[1754135979903,0.02349131,114050.0,114040.0,0.52246]
[1754135981048,0.017311,114050.0,114040.0,0.52246]
[1754135981268,0.0234913,114050.0,114040.0,0.52246]
[1754135982096,0.0234914,114050.0,114040.0,0.52246]
[1754135982726,0.03722152,114050.0,114040.0,0.52246]
[1754135983517,0.03104122,114050.0,114040.0,0.52246]
[1754135983950,0.0173111,114050.0,114040.0,0.52246]
[1754135984954,0.02349138,114050.0,114040.0,0.52246]
[1754135986908,0.03722154,114050.0,114040.0,0.52246]
[1754135992599,0.0372216,114050.0,114040.0,0.52246]
[1754135993502,0.03722167,114050.0,114040.0,0.52246]
[1754135994765,0.03722167,114050.0,114040.0,0.38906]
[1754135994971,0.03926167,114050.0,114040.0,0.52246]
[1754135995124,0.03926167,114050.0,114040.0,0.38906]
[1754135995344,0.03926167,114050.0,114040.0,0.52246]
[1754135997470,0.20172351,114060.0,114040.0,0.52246]
[1754135997683,0.22704989,114060.0,114050.0,0.1334]
[1754135997886,0.22902989,114060.0,114050.0,0.1334]
[1754135998750,0.22902989,114060.0,114050.0,0.23539]
[1754135999000,0.22902989,114060.0,114050.0,0.23639]
[1754135999649,0.2427599,114060.0,114050.0,0.23639]
[1754136000388,0.5827599,114060.0,114050.0,0.23639]
[1754136001564,0.58275943,114060.0,114050.0,0.23639]
[1754136003571,0.73275943,114060.0,114050.0,0.1344]
[1754136003791,0.71902942,114060.0,114050.0,0.1344]
[1754136004667,0.85242942,114060.0,114050.0,0.001]
[1754136005142,0.85242684,114060.0,114050.0,0.1344]
[1754136005359,0.85242684,114060.0,114050.0,0.10299]
[1754136006571,0.86615692,114060.0,114050.0,0.10299]
[1754136007204,0.84968035,114060.0,114050.0,0.10299]
[1754136007442,0.86615371,114060.0,114050.0,0.10299]
[1754136009642,0.88056681,114060.0,114050.0,0.10299]
[1754136010192,0.88056677,114060.0,114050.0,0.10299]
[1754136016055,0.8805648,114060.0,114050.0,0.10299]
[1754136018963,0.88056528,114060.0,114050.0,0.10299]
[1754136019375,0.8668352,114060.0,114050.0,0.10299]
[1754136021823,0.86683704,114060.0,114050.0,0.10299]
[1754136024327,0.88056713,114060.0,114050.0,0.10299]
[1754136024846,0.88056713,114060.0,114050.0,0.10613]
[1754136025286,5.88056713,114060.0,114050.0,0.10613]
[1754136025510,5.88056713,114060.0,114050.0,0.08925991]
[1754136025751,0.51536168,114050.0,114040.0,0.40544362]
[1754136025973,0.54822845,114050.0,114040.0,0.40758362]
[1754136026226,0.68158845,114050.0,114040.0,0.27422362]
[1754136026500,0.70796745,114050.0,114040.0,0.27422362]
[1754136027120,0.70796745,114050.0,114040.0,0.00014362]
[1754136027572,0.70796745,114050.0,114040.0,0.10174362]
[1754136027800,0.70796745,114050.0,114040.0,0.10388362]
[1754136028209,0.70796745,114050.0,114040.0,0.10488362]
[1754136028843,0.72169866,114050.0,114040.0,0.10488362]
[1754136029040,0.72169866,114050.0,114040.0,0.10688362]
[1754136033553,0.72168396,114050.0,114040.0,0.10688362]
[1754136033838,0.78736614,114050.0,114040.0,0.00314362]
[1754136034101,0.79837614,114050.0,114040.0,0.00314362]
[1754136034348,0.81734002,114050.0,114040.0,0.00314362]
[1754136034593,0.81734002,114050.0,114040.0,0.00114362]
[1754136035031,0.75165579,114050.0,114040.0,0.00114362]
[1754136035284,0.75040579,114050.0,114040.0,0.00114362]
[1754136035497,0.74064376,114050.0,114040.0,0.00114362]
[1754136036361,0.73241219,114050.0,114040.0,0.00114362]
[1754136036588,0.74064145,114050.0,114040.0,0.09960362]
[1754136038133,0.74064145,114050.0,114040.0,0.00114362]
[1754136038338,5.74064145,114050.0,114040.0,0.00114362]
[1754136039291,5.74063419,114050.0,114040.0,0.00114362]
[1754136041241,5.74063419,114050.0,114040.0,0.09960362]
[1754136042129,5.74063419,114050.0,114040.0,0.10274362]
[1754136042335,5.74062196,114050.0,114040.0,0.10274362]
[1754136046494,5.82482185,114050.0,114040.0,0.10274362]
[1754136048071,5.82481761,114050.0,114040.0,0.10274362]
[1754136048682,5.74061772,114050.0,114040.0,0.10274362]
[1754136052679,5.7323927,114050.0,114040.0,0.10274362]
[1754136052926,5.740622,114050.0,114040.0,0.10274362]
[1754136054121,5.740622,114050.0,114040.0,0.10488362]
[1754136054348,5.738642,114050.0,114040.0,0.10488362]
[1754136055488,5.73864563,114050.0,114040.0,0.10488362]
[1754136056215,5.74061563,114050.0,114040.0,0.10488362]
[1754136057651,0.74061563,114050.0,114040.0,0.10488362]
[1754136057863,5.74061563,114050.0,114040.0,0.10488362]
[1754136058739,0.74061563,114050.0,114040.0,0.10488362]
[1754136059636,0.56328395,114050.0,114040.0,0.38210324]
[1754136059858,0.54432415,114050.0,114040.0,0.38210324]
[1754136060093,0.41096415,114050.0,114040.0,0.38210324]
[1754136060795,0.38458515,114050.0,114040.0,0.38210324]
[1754136061046,0.36813423,114050.0,114040.0,0.38210324]
[1754136062181,0.36813423,114050.0,114040.0,0.78426324]
[1754136063806,0.35440302,114050.0,114040.0,0.78426324]
[1754136066688,0.36813353,114050.0,114040.0,0.78426324]
[1754136066959,0.35440302,114050.0,114040.0,0.78426324]
[1754136067236,0.36813353,114050.0,114040.0,0.78426324]
[1754136068770,0.3681305,114050.0,114040.0,0.78426324]
[1754136069236,0.3619557,114050.0,114040.0,0.78426324]
[1754136073061,0.36195344,114050.0,114040.0,0.78426324]
[1754136076195,0.36195257,114050.0,114040.0,0.78426324]
[1754136077790,0.36195257,114050.0,114040.0,1.06148286]
[1754136078263,0.02195257,114050.0,114040.0,1.06148286]
[1754136078490,0.00822206,114050.0,114040.0,1.06148286]
[1754136081255,0.02195188,114050.0,114040.0,1.06148286]
[1754136083108,0.02195188,114050.0,114040.0,0.78426324]
[1754136084676,0.02195188,114050.0,114040.0,0.50704362]
[1754136084886,0.02195188,114050.0,114040.0,0.78426324]
[1754136087119,0.02063661,114050.0,114040.0,0.78426324]
[1754136088089,0.02063661,114050.0,114040.0,0.50704362]
[1754136088301,0.02063661,114050.0,114040.0,0.78426324]
[1754136088824,0.02063661,114050.0,114040.0,0.50704362]
[1754136089051,0.02063661,114050.0,114040.0,0.78426324]
[1754136090891,0.01372982,114050.0,114040.0,0.78426324]
[1754136093942,0.01372982,114050.0,114040.0,0.50704362]
[1754136095123,0.01372982,114050.0,114040.0,0.78426324]
[1754136095673,0.01372982,114050.0,114040.0,0.65090324]
[1754136095916,0.01570982,114050.0,114040.0,0.50704362]
[1754136097281,0.1910715,114050.0,114040.0,0.50490362]
[1754136097519,0.19724672,114050.0,114040.0,0.50176362]
[1754136099204,0.03011925,114050.0,114040.0,0.50176362]
[1754136100342,0.20548093,114050.0,114040.0,0.50176362]
[1754136100559,0.54548093,114050.0,114040.0,0.50176362]
[1754136101158,0.54548093,114050.0,114040.0,0.40330362]
[1754136101804,0.54548093,114050.0,114040.0,0.50625362]
[1754136102186,0.54548284,114050.0,114040.0,0.50625362]
[1754136102673,0.34659736,114050.0,114040.0,0.50625362]
[1754136102899,0.52195904,114050.0,114040.0,0.50625362]
[1754136104633,0.52195904,114050.0,114040.0,0.50948362]
[1754136105234,0.52195652,114050.0,114040.0,0.50948362]
[1754136105909,0.53568748,114050.0,114040.0,0.37289362]
[1754136106137,0.53568748,114050.0,114040.0,0.50625362]
[1754136106824,0.53568748,114050.0,114040.0,0.40330362]
[1754136107439,0.53568748,114050.0,114040.0,0.50625362]
[1754136108443,0.53568748,114050.0,114040.0,0.48625362]
[1754136108643,0.53568748,114050.0,114040.0,0.48948362]
[1754136109246,0.53568748,114050.0,114040.0,0.48625362]
[1754136109653,0.53568748,114050.0,114040.0,0.23631]
[1754136110022,0.53568748,114050.0,114040.0,0.23954]
[1754136113129,0.53568352,114050.0,114040.0,0.23954]
[1754136116109,0.53568352,114050.0,114040.0,0.23631]
[1754136116741,0.53568352,114050.0,114040.0,0.23948]
[1754136116970,0.52745387,114050.0,114040.0,0.23948]
[1754136117172,0.53568046,114050.0,114040.0,0.23948]
[1754136117794,0.36031878,114050.0,114040.0,0.24152]
[1754136121007,0.53568046,114050.0,114040.0,0.24152]
[1754136121453,0.36031878,114050.0,114040.0,0.24152]
[1754136121925,0.36032042,114050.0,114040.0,0.24152]
[1754136123111,0.5356821,114050.0,114040.0,0.24152]
[1754136123355,0.36032042,114050.0,114040.0,0.24152]
[1754136123841,0.0281344,114050.0,114040.0,0.24152]
[1754136124762,0.02813743,114050.0,114040.0,0.24152]
[1754136127752,0.20350679,114050.0,114040.0,0.10816]
[1754136127995,0.24075127,114050.0,114040.0,0.10612]
[1754136128247,0.17537706,114040.0,114030.0,0.35442362]
[1754136128494,0.18979121,114040.0,114030.0,0.48792727]
[1754136128987,0.18979121,114040.0,114030.0,0.48996727]
[1754136129449,0.18979121,114040.0,114030.0,0.49196727]
[1754136129911,0.18979121,114040.0,114030.0,0.49296727]
[1754136131104,0.18979121,114040.0,114030.0,0.35960727]
[1754136131351,0.18979121,114040.0,114030.0,0.49296727]
[1754136133191,0.52979121,114040.0,114030.0,0.24302365]
[1754136133732,0.5297903,114040.0,114030.0,0.24302365]
[1754136134887,5.6797903,114040.0,114030.0,0.13650365]
[1754136135120,5.7061733,114040.0,114030.0,0.13650365]
[1754136135574,5.7061733,114040.0,114030.0,0.23781365]
[1754136136960,5.7061733,114040.0,114030.0,0.10762365]
[1754136137654,5.7199059,114040.0,114030.0,0.10762365]
[1754136143795,5.7199059,114040.0,114030.0,0.10966365]
[1754136144646,5.8532659,114040.0,114030.0,0.10966365]
[1754136148283,5.93746579,114040.0,114030.0,0.10966365]
[1754136148501,5.93746579,114040.0,114030.0,0.10762365]
[1754136148734,5.93746579,114040.0,114030.0,0.10445365]
[1754136149005,5.8532659,114040.0,114030.0,0.10445365]
[1754136149268,5.8532659,114040.0,114030.0,0.10745365]
[1754136150513,5.8532659,114040.0,114030.0,0.10445365]
[1754136152412,5.8532659,114040.0,114030.0,0.00314365]
[1754136152877,5.8532659,114040.0,114030.0,0.09977365]
[1754136153845,5.8532659,114040.0,114030.0,0.10277365]
[1754136156243,5.82509475,114040.0,114030.0,0.09977365]
[1754136161195,5.84407379,114040.0,114030.0,0.09977365]
[1754136162125,5.86959776,114040.0,114030.0,0.09977365]
[1754136162323,0.86959776,114040.0,114030.0,0.09977365]
[1754136162599,5.84407379,114040.0,114030.0,0.09677365]
[1754136164869,5.84407379,114040.0,114030.0,0.00014365]
[1754136165264,5.84407379,114040.0,114030.0,0.09677365]
[1754136165490,5.84407379,114040.0,114030.0,0.00014365]
[1754136167280,5.84155379,114040.0,114030.0,0.00014365]
[1754136167921,5.8477318,114040.0,114030.0,0.00014365]
[1754136168507,0.17539244,114030.0,114020.0,0.09154352]
[1754136168739,5.34430458,114030.0,114020.0,0.0915913]
[1754136169403,5.68430458,114030.0,114020.0,0.0915913]
[1754136170960,5.71069258,114030.0,114020.0,0.0915913]
[1754136171159,5.79489247,114030.0,114020.0,0.0915913]
[1754136171873,5.79489247,114030.0,114020.0,0.08560395]
[1754136172104,0.32540782,114020.0,114010.0,0.003]
[1754136172384,0.5154232,114010.0,114000.0,0.37878018]
[1754136172629,0.6657163,114010.0,114000.0,0.24725018]
[1754136172883,5.7999721,114010.0,114000.0,0.24725018]
[1754136173406,5.81369927,114010.0,114000.0,0.24725018]
[1754136173880,5.73256206,114010.0,114000.0,0.24725018]
[1754136174152,5.73256206,114010.0,114000.0,0.34588018]
[1754136174424,5.73256206,114010.0,114000.0,0.34888018]
[1754136174660,5.73256206,114010.0,114000.0,0.10378]
[1754136175791,5.71882629,114010.0,114000.0,0.10478]
[1754136176548,5.73256204,114010.0,114000.0,0.10478]
[1754136176780,0.73256204,114010.0,114000.0,0.10478]
[1754136177452,5.73256204,114010.0,114000.0,0.10478]
[1754136178303,5.81676193,114010.0,114000.0,0.10478]
[1754136180353,5.81675426,114010.0,114000.0,0.10478]
[1754136181674,5.81675426,114010.0,114000.0,0.10178]
[1754136183635,5.73255437,114010.0,114000.0,0.10178]
[1754136184393,5.73254313,114010.0,114000.0,0.10178]
[1754136184838,5.73034313,114010.0,114000.0,0.38207962]
[1754136185066,5.73034247,114010.0,114000.0,0.10486]
[1754136185296,5.71660672,114010.0,114000.0,0.10486]
[1754136185742,5.54118352,114010.0,114000.0,0.10486]
[1754136185963,5.71660672,114010.0,114000.0,0.38207962]
[1754136186604,5.54118352,114010.0,114000.0,0.38207962]
[1754136186857,0.40750352,114010.0,114000.0,0.65929924]
[1754136187116,0.54118352,114010.0,114000.0,0.38207962]
[1754136187335,0.71660672,114010.0,114000.0,0.10486]
[1754136188230,0.55491942,114010.0,114000.0,0.1049]
[1754136188457,0.73034262,114010.0,114000.0,0.1049]
[1754136188671,0.59666262,114010.0,114000.0,0.1049]
[1754136188896,0.73243262,114010.0,114000.0,0.10182]
[1754136189120,0.73543262,114010.0,114000.0,0.09967]
[1754136189325,0.73239262,114010.0,114000.0,0.10182]
[1754136189818,5.73239262,114010.0,114000.0,0.10182]
[1754136190301,5.81659251,114010.0,114000.0,0.10182]
[1754136190527,5.73239262,114010.0,114000.0,0.10182]
[1754136192208,5.73239262,114010.0,114000.0,0.1049]
[1754136193739,5.73239262,114010.0,114000.0,0.10182]
[1754136195580,5.73543262,114010.0,114000.0,0.10182]
[1754136196036,5.81963251,114010.0,114000.0,0.00304]
[1754136196247,5.8385995,114010.0,114000.0,0.10268]
[1754136196693,5.83861283,114010.0,114000.0,0.10268]
[1754136197342,5.83861283,114010.0,114000.0,0.00304]
[1754136197566,5.84791283,114010.0,114000.0,0.00304]
[1754136198244,0.17545398,113990.0,113980.0,0.10004]
[1754136198486,0.81590224,113990.0,113980.0,0.10004]
[1754136198947,0.84229824,113990.0,113980.0,0.10219]
[1754136199438,0.69024824,113990.0,113980.0,0.10627]
[1754136199665,0.84030942,113990.0,113980.0,0.10627]
[1754136200095,0.69030942,113990.0,113980.0,0.10627]
[1754136200325,0.69030942,113990.0,113980.0,0.38348962]
[1754136200771,0.51485544,113990.0,113980.0,0.38448962]
[1754136201427,0.52867355,113990.0,113980.0,0.66170924]
[1754136201876,0.52867355,113990.0,113980.0,0.10727]
[1754136202088,0.52867355,113990.0,113980.0,0.66170924]
[1754136202541,0.36819755,113990.0,113980.0,0.93050924]
[1754136202774,0.36819755,113990.0,113980.0,0.65377981]
[1754136203002,0.02819755,113990.0,113980.0,0.65377981]
[1754136203474,0.02202114,113990.0,113980.0,0.65377981]
[1754136203701,0.02819497,113990.0,113980.0,0.65377981]
[1754136204636,0.02202114,113990.0,113980.0,0.65377981]
[1754136204856,0.36202114,113990.0,113980.0,0.65377981]
[1754136205453,0.36201766,113990.0,113980.0,0.65377981]
[1754136208088,0.36201766,113990.0,113980.0,0.37607]
[1754136209243,0.36819183,113990.0,113980.0,0.37607]
[1754136213109,0.36819183,113990.0,113980.0,0.65377981]
[1754136214488,0.36819183,113990.0,113980.0,0.37607]
[1754136215937,0.37030183,113990.0,113980.0,0.37607]
[1754136216173,0.37030183,113990.0,113980.0,0.37299]
[1754136216827,0.37030183,113990.0,113980.0,0.37593]
[1754136219057,0.35445372,113990.0,113980.0,0.65363981]
[1754136221798,0.36819156,113990.0,113980.0,0.65363981]
[1754136223008,0.36819937,113990.0,113980.0,0.65363981]
[1754136225078,0.02819937,113990.0,113980.0,0.65363981]
[1754136226485,0.02202206,113990.0,113980.0,0.65363981]
[1754136226731,0.01378565,113990.0,113980.0,0.65363981]
[1754136226997,4.781e-05,113990.0,113980.0,0.65363981]
[1754136229535,0.01378442,113990.0,113980.0,0.65363981]
[1754136234591,0.01378442,113990.0,113980.0,0.78767981]
[1754136237039,4.781e-05,113990.0,113980.0,0.78767981]
[1754136237485,4.781e-05,113990.0,113980.0,0.78465981]
[1754136239474,4.781e-05,113990.0,113980.0,0.51585981]
[1754136239694,0.01378374,113990.0,113980.0,0.23815]
[1754136239900,0.01378374,113990.0,113980.0,0.51585981]
[1754136240372,0.01378374,113990.0,113980.0,0.78465981]
[1754136243790,4.781e-05,113990.0,113980.0,0.78465981]
[1754136245413,0.00510781,113990.0,113980.0,0.40476]
[1754136245655,0.01100781,113990.0,113980.0,0.13596]
[1754136246325,0.00510781,113990.0,113980.0,0.13596]
[1754136246656,0.01884509,113990.0,113980.0,0.13596]
[1754136247077,0.01884509,113990.0,113980.0,0.002]
[1754136247307,0.01884509,113990.0,113980.0,0.13628]
[1754136248245,0.02474509,113990.0,113980.0,0.13628]
[1754136248901,0.01884509,113990.0,113980.0,0.13628]
[1754136249122,0.02707557,113990.0,113980.0,0.09585]
[1754136249368,0.02707557,113990.0,113980.0,0.23009]
[1754136250581,0.02707557,113990.0,113980.0,0.13624]
[1754136251003,0.02707557,113990.0,113980.0,0.002]
[1754136251507,0.02707557,113990.0,113980.0,0.2708]
[1754136252437,0.02707557,113990.0,113980.0,0.36465]
[1754136253570,0.02707557,113990.0,113980.0,0.49885]
[1754136253798,0.02412557,113990.0,113980.0,0.49885]
[1754136254023,0.02412557,113990.0,113980.0,0.77859981]
[1754136255960,0.02412557,113990.0,113980.0,0.78180981]
[1754136256191,0.02412557,113990.0,113980.0,0.5041]
[1754136258130,0.02412557,113990.0,113980.0,0.78180981]
[1754136260472,0.02412557,113990.0,113980.0,0.5041]
[1754136260701,0.02412557,113990.0,113980.0,0.78180981]
[1754136261157,0.02412557,113990.0,113980.0,0.5041]
[1754136262070,0.02412557,113990.0,113980.0,0.50089]
[1754136263053,0.02412557,113990.0,113980.0,0.49885]
[1754136263274,0.02707557,113990.0,113980.0,0.49885]
[1754136263733,0.02412557,113990.0,113980.0,0.49885]
[1754136264206,0.02707557,113990.0,113980.0,0.49885]
[1754136266278,0.01333829,113990.0,113980.0,0.49885]
[1754136268584,0.01038829,113990.0,113980.0,0.49885]
[1754136268979,0.01353829,113990.0,113980.0,0.49869]
[1754136269182,0.01353829,113990.0,113980.0,0.77649185]
[1754136269600,0.01038829,113990.0,113980.0,0.77649185]
[1754136270070,0.01038829,113990.0,113980.0,0.64459185]
[1754136270298,0.01038829,113990.0,113980.0,0.77863185]
[1754136270516,0.02412577,113990.0,113980.0,0.77863185]
[1754136271166,0.02412577,113990.0,113980.0,0.50083]
[1754136272262,0.00617775,113990.0,113980.0,0.50083]
[1754136272470,0.00617775,113990.0,113980.0,0.5039]
[1754136272687,0.00815775,113990.0,113980.0,0.5039]
[1754136273331,0.02189529,113990.0,113980.0,0.5039]
[1754136274041,0.01991529,113990.0,113980.0,0.5039]
[1754136275165,0.01991529,113990.0,113980.0,0.78170185]
[1754136276068,0.19734927,113990.0,113980.0,0.36986]
[1754136276284,0.55697852,113990.0,113980.0,0.49857]
[1754136276761,0.55383852,113990.0,113980.0,0.49857]
[1754136277220,0.5538442,113990.0,113980.0,0.49857]
[1754136277742,0.5538442,113990.0,113980.0,0.36465]
[1754136279215,0.5685708,113990.0,113980.0,0.36465]
[1754136279450,0.7025308,113990.0,113980.0,0.36465]
[1754136280365,0.7025308,113990.0,113980.0,0.2708]
[1754136280604,0.8556708,113990.0,113980.0,0.2708]
[1754136281053,0.8556708,113990.0,113980.0,0.27084]
[1754136281286,0.8556708,113990.0,113980.0,0.00204]
[1754136281510,0.8556708,113990.0,113980.0,0.09381]
[1754136283100,0.85566573,113990.0,113980.0,0.09381]
[1754136285978,0.86388358,113990.0,113980.0,0.09381]
[1754136286455,0.89027858,113990.0,113980.0,0.09381]
[1754136286587,0.89027858,113990.0,113980.0,0.00204]
[1754136286853,0.89371858,113990.0,113980.0,0.00204]
[1754136287103,0.89027858,113990.0,113980.0,0.00204]
[1754136287812,0.89027858,113990.0,113980.0,0.09381]
[1754136288015,0.87555198,113990.0,113980.0,0.09381]
[1754136288222,0.87241198,113990.0,113980.0,0.09381]
[1754136290970,0.87556198,113990.0,113980.0,0.09381]
[1754136291416,0.87241198,113990.0,113980.0,0.09381]
[1754136291635,0.87239967,113990.0,113980.0,0.09381]
[1754136291854,0.95659956,113990.0,113980.0,0.09381]
[1754136292301,5.95659956,113990.0,113980.0,0.09381]
[1754136293679,5.87239967,113990.0,113980.0,0.09381]
[1754136293813,5.87239927,113990.0,113980.0,0.09381]
[1754136294665,5.87239793,113990.0,113980.0,0.09381]
[1754136297558,5.87239847,113990.0,113980.0,0.09381]
[1754136298822,5.85866093,113990.0,113980.0,0.09381]
[1754136301534,5.87239956,113990.0,113980.0,0.09381]
[1754136302890,5.89137487,113990.0,113980.0,0.09381]
[1754136303093,0.89137487,113990.0,113980.0,0.09381]
[1754136303320,0.56100558,113990.0,113980.0,0.09898]
[1754136303570,0.73645956,113990.0,113980.0,0.09898]
[1754136303812,0.54726695,113990.0,113980.0,0.09898]
[1754136304251,0.72272093,113990.0,113980.0,0.09898]
[1754136305404,0.72020564,113990.0,113980.0,0.09898]
[1754136305592,0.85412564,113990.0,113980.0,0.09898]
[1754136305911,0.72020564,113990.0,113980.0,0.09898]
[1754136306150,0.85408564,113990.0,113980.0,0.09898]
[1754136307883,0.86782374,113990.0,113980.0,0.09898]
[1754136308312,0.69236976,113990.0,113980.0,0.09898]
[1754136308749,0.54236976,113990.0,113980.0,0.09898]
[1754136310005,0.54232976,113990.0,113980.0,0.09898]
[1754136310461,0.40848976,113990.0,113980.0,0.37681936]
[1754136310673,0.02814972,113990.0,113980.0,0.36778]
[1754136310902,0.02814972,113990.0,113980.0,0.51069936]
[1754136311121,0.02197062,113990.0,113980.0,0.51069936]
[1754136311335,0.0137381,113990.0,113980.0,0.51069936]
[1754136311546,0.3537381,113990.0,113980.0,0.51069936]
[1754136322561,0.3537381,113990.0,113980.0,0.77949936]
[1754136327001,0.3537381,113990.0,113980.0,0.77941725]
[1754136330567,0.3537381,113990.0,113980.0,0.50166]
[1754136330792,0.3537381,113990.0,113980.0,0.77941725]
[1754136331025,0.3558581,113990.0,113980.0,0.77941725]
[1754136334722,0.3537381,113990.0,113980.0,0.77941725]
[1754136337626,0.3537381,113990.0,113980.0,0.50166]
[1754136337854,0.3537381,113990.0,113980.0,0.77941725]
[1754136339570,0.36197785,113990.0,113980.0,0.77941725]
[1754136339995,0.36197785,113990.0,113980.0,0.50166]
[1754136340213,0.36197785,113990.0,113980.0,0.77941725]
[1754136340434,0.36815996,113990.0,113980.0,0.77941725]
[1754136340676,0.36197785,113990.0,113980.0,0.77941725]
[1754136341115,0.36197785,113990.0,113980.0,0.50166]
[1754136341337,0.36197785,113990.0,113980.0,0.77941725]
[1754136341786,0.36815994,113990.0,113980.0,0.77941725]
[1754136343577,0.36816291,113990.0,113980.0,0.77941725]
[1754136349995,0.37028291,113990.0,113980.0,0.77941725]
[1754136350219,0.37028291,113990.0,113980.0,0.77623725]
[1754136350439,0.37028291,113990.0,113980.0,0.77929725]
[1754136351716,0.37028291,113990.0,113980.0,0.50154]
[1754136351951,0.37028291,113990.0,113980.0,0.77929725]
[1754136352182,0.36410082,113990.0,113980.0,0.77909725]
[1754136352394,0.37028286,113990.0,113980.0,0.77909725]
[1754136357243,0.37028286,113990.0,113980.0,0.49625]
[1754136357900,0.37028286,113990.0,113980.0,0.77400725]
[1754136358367,0.37028349,113990.0,113980.0,0.77400725]
[1754136360676,0.37028349,113990.0,113980.0,0.77906725]
[1754136361747,0.43853774,113990.0,113980.0,0.27084]
[1754136361981,0.37028349,113990.0,113980.0,0.40448]
[1754136362185,0.37329349,113990.0,113980.0,0.40448]
[1754136363418,0.37329349,113990.0,113980.0,0.49335]
[1754136363877,0.54874747,113990.0,113980.0,0.35971]
[1754136364043,0.37329349,113990.0,113980.0,0.35971]
[1754136365108,0.37028349,113990.0,113980.0,0.35971]
[1754136367337,0.36816349,113990.0,113980.0,0.64252725]
[1754136367805,0.36816349,113990.0,113980.0,0.9202845]
[1754136368022,0.36816349,113990.0,113980.0,1.0539245]
[1754136368926,0.36198118,113990.0,113980.0,1.0539245]
[1754136371231,0.36198118,113990.0,113980.0,1.0514045]
[1754136375331,0.36198118,113990.0,113980.0,1.05066768]
[1754136377066,0.36198118,113990.0,113980.0,0.77291043]
[1754136377517,0.36198118,113990.0,113980.0,0.49515318]
[1754136377744,0.36198118,113990.0,113980.0,0.77291043]
[1754136383608,0.00824156,113990.0,113980.0,0.77291043]
[1754136383829,0.02197877,113990.0,113980.0,0.77291043]
[1754136386554,0.02197895,113990.0,113980.0,1.05066768]
[1754136386787,0.35373721,113990.0,113980.0,1.05066768]
[1754136388557,0.35373721,113990.0,113980.0,0.49515318]
[1754136388774,0.35373721,113990.0,113980.0,1.05066768]
[1754136390650,0.36197891,113990.0,113980.0,0.77291043]
[1754136392311,0.36197899,113990.0,113980.0,0.77291043]
[1754136395354,0.3619794,113990.0,113980.0,0.77291043]
[1754136411728,0.3619794,113990.0,113980.0,0.49515318]
[1754136411950,0.3619794,113990.0,113980.0,0.77291043]
[1754136417190,0.3619794,113990.0,113980.0,1.05066768]
[1754136418059,0.0219794,113990.0,113980.0,1.05066768]
[1754136422006,0.01373721,113990.0,113980.0,1.34587395]
[1754136422494,0.01373721,113990.0,113980.0,2.1791457]
[1754136422729,0.01373721,113990.0,113980.0,1.43007384]
[1754136422961,0.01373721,113990.0,113980.0,1.45645584]
[1754136423445,0.34,114020.0,113990.0,0.01744902]
[1754136423696,0.34823287,114020.0,114010.0,0.27990725]